fUSD/lending_fUSD_20251029
["ID","MTS","AMOUNT","RATE_DAILY","PERIOD"]
[392649836,1761773438252,-7158.73761266,0.000148,2]
[392649837,1761773438265,-280.38975136,0.000148,2]
[392649881,1761773444411,-34772.8891461,0.000148,2]
[392649882,1761773444420,-12543.0987241,0.0001483,2]
[392649883,1761773444429,-1965.2571642,0.0001483,2]
[392649884,1761773444438,-7528.3302032,0.0001483,2]
[392649885,1761773444447,-19414.2047833,0.0001483,2]
[392649886,1761773444456,-1594.0,0.00014856,2]
[392649887,1761773444465,-1314.0,0.00014856,2]
[392649888,1761773444474,-1271.0,0.00014856,2]
[392649889,1761773444483,-819.0,0.00014856,2]
[392649890,1761773444491,-904.0,0.00014856,2]
[392649891,1761773444500,-1186.0,0.00014856,2]
[392649892,1761773444510,-620.663,0.00014856,2]
[392649893,1761773444519,-2255.27,0.00014856,2]
[392649894,1761773444528,-200.0,0.00014861,2]
[392649895,1761773444537,-151.0,0.00014861,2]
[392649896,1761773444546,-172.33266148,0.00014861,2]
[392649897,1761773444555,-150.0,0.0001487,2]
[392649898,1761773444564,-150.0,0.0001487,2]
[392649899,1761773444573,-500.0,0.0001488,2]
[392649900,1761773444582,-200.0,0.0001488,2]
[392649901,1761773444592,-824.0,0.000149,2]
[392649902,1761773444601,-1000.0,0.000149,2]
[392649903,1761773444610,-1000.0,0.000149,2]
[392649904,1761773444620,-5021.6497,0.000149,2]
[392649905,1761773444629,-222.64820185,0.000149,2]
[392649906,1761773444639,-435.68171857,0.000149,2]
[392649907,1761773444648,-1634.0,0.000149,2]
[392649908,1761773444658,-504.0,0.00014904,2]
[392649909,1761773444667,-500.0,0.00014973,2]
[392649910,1761773444677,-500.0,0.00014973,2]
[392649911,1761773444686,-485.04266598,0.00014973,2]
[392649912,1761773444695,-500.0,0.00014973,2]
[392649913,1761773444704,-500.0,0.00014973,2]
[392649914,1761773444714,-500.0,0.00014973,2]
[392649915,1761773444723,-509.03494813,0.00014973,2]
[392649916,1761773444732,-508.32529215,0.00014973,2]
[392649917,1761773444742,-500.0,0.00014973,2]
[392649918,1761773444751,-500.0,0.00014973,2]
[392649919,1761773444760,-503.10126105,0.00014973,2]
[392649920,1761773444769,-500.0,0.00014973,2]
[392649921,1761773444778,-500.0,0.00014973,2]
[392649922,1761773444787,-162.06515158,0.00014986,2]
[392649923,1761773444796,-150.0,0.00014986,2]
[392649924,1761773444806,-1331.7476649,0.00014988,2]
[392649925,1761773444815,-1724.2910561,0.00014988,2]
[392649926,1761773444825,-289.08,0.0001499,2]
[392649927,1761773444834,-289.08,0.0001499,2]
[392649928,1761773444844,-448.91475956,0.0001499,2]
[392649929,1761773444853,-448.91475956,0.0001499,2]
[392649930,1761773444862,-448.91475956,0.0001499,2]
[392649931,1761773444872,-15390.44455845,0.00014999,2]
[392649932,1761773444881,-1005.57,0.00014999,2]
[392649933,1761773444892,-1008.291,0.00014999,2]
[392649934,1761773444903,-500.0,0.00014999,2]
[392649935,1761773444914,-506.29907877,0.00014999,2]
[392649936,1761773444923,-554.29106622,0.00014999,2]
[392649937,1761773444932,-1000.0,0.00014999,2]
[392649938,1761773444941,-581.891,0.00014999,2]
[392649939,1761773444950,-500.0,0.00014999,2]
[392649940,1761773444960,-500.0,0.00014999,2]
[392649941,1761773444974,-500.0,0.00014999,2]
[392649942,1761773444985,-500.0,0.00014999,2]
[392649943,1761773444994,-1828.0,0.00015,2]
[392649944,1761773445004,-37883.70445821,0.00015,2]
[392649945,1761773445059,-1790416.50216337,0.00015,2]
[392649946,1761773445068,-231592.27332871,0.00015,2]
[392649947,1761773445077,-1122254.45096551,0.00015,2]
[392649948,1761773445120,-558.59432615,0.00015,2]
[392649985,1761773529575,999.0,0.00014159,3]
[392649986,1761773555235,197811.7793,0.00031506,120]
[392649990,1761773600554,500.0,0.00025386,120]
[392649991,1761773601124,500.0,0.0002807,120]
[392649992,1761773601802,500.0,0.00030755,120]
[392649993,1761773636332,-166.68,0.00013699,2]
[392649994,1761773636357,-686.35,0.00013699,2]
[392650001,1761773664746,-500.0,0.00013703,2]
[392650057,1761773760638,150.0,0.00031507,120]
[392650060,1761774015500,-150.0,0.00013814,2]
[392650113,1761774173085,694.0,0.00031507,120]
[392650114,1761774203855,500.0,0.00025947,120]
[392650115,1761774204193,500.0,0.00029193,120]
[392650116,1761774204576,500.0,0.00031506,120]
[392650126,1761774292841,-575.63450544,0.00013866,2]
[392650127,1761774307255,150.0,0.00013488,2]
[392650128,1761774319475,-181.13536588,0.00013781,2]
[392650129,1761774350507,150.0,0.00013776,120]
[392650139,1761774358973,-150.0,0.00013776,2]
[392650140,1761774380551,-300.0,0.00013867,2]
[392650141,1761774401801,-195.0,0.00013867,2]
[392650142,1761774413456,-300.0,0.00013868,2]
[392650143,1761774423194,-250.0,0.00013798,2]
[392650145,1761774434332,-959.57,0.00013798,2]
[392650149,1761774443701,-250.0,0.00013869,2]
[392650152,1761774453477,-153.79597611,0.00013871,2]
[392650153,1761774461161,-300.0,0.00013873,2]
[392650154,1761774461187,-300.0,0.00013873,2]
[392650155,1761774531428,-200.0,0.00013878,2]
[392650156,1761774539655,-300.0,0.00013879,2]
[392650157,1761774549689,-250.0,0.00013879,2]
[392650158,1761774549713,-195.0,0.00013879,2]
[392650168,1761774575121,-300.0,0.0001388,2]
[392650169,1761774593941,-200.0,0.00013881,2]
[392650181,1761774622235,179.92,0.00011101,2]
[392650188,1761774631446,-800.0,0.00013881,2]
[392650189,1761774631457,-1031.39,0.00013955,2]
[392650190,1761774631468,-578.20924308,0.00014081,2]
[392650191,1761774631477,-277.35679052,0.00014081,2]
[392650192,1761774631487,-674.10676364,0.00014586,2]
[392650193,1761774631500,-218.56662358,0.00014586,2]
[392650194,1761774631510,-150.0,0.00014596,2]
[392650195,1761774631519,-221.53471527,0.0001472,2]
[392650196,1761774631528,-1200.0,0.0001476,2]
[392650197,1761774631541,-1000.0,0.00014761,2]
[392650198,1761774631550,-300.0,0.00014764,2]
[392650199,1761774631560,-300.0,0.00014764,2]
[392650200,1761774631570,-1051.0,0.00014765,2]
[392650201,1761774631579,-150.0,0.00014765,2]
[392650202,1761774631588,-300.0,0.00014765,2]
[392650203,1761774631597,-387.28888275,0.00014765,2]
[392650204,1761774631606,-274.68975984,0.00014765,2]
[392650205,1761774631615,-500.0,0.00014765,2]
[392650206,1761774631625,-500.0,0.00014765,2]
[392650207,1761774631636,-500.0,0.00014765,2]
[392650208,1761774631645,-500.0,0.00014765,2]
[392650209,1761774631655,-284.12001856,0.00014765,2]
[392650210,1761774631674,-215.87998144,0.00014765,2]
[392650211,1761774631683,-500.0,0.00014765,2]
[392650212,1761774631693,-500.0,0.00014765,2]
[392650213,1761774631702,-50.07532046,0.00014765,2]
[392650214,1761774631714,-449.92467954,0.00014765,2]
[392650215,1761774631723,-332.14927173,0.00014765,2]
[392650217,1761774631735,-167.85072827,0.00014765,2]
[392650219,1761774631744,-257.99378173,0.00014765,2]
[392650221,1761774631755,-242.00621827,0.00014765,2]
[392650222,1761774631764,-500.0,0.00014765,2]
[392650223,1761774631773,-500.0,0.00014765,2]
[392650224,1761774631782,-500.0,0.00014765,2]
[392650226,1761774631791,-500.0,0.00014765,2]
[392650228,1761774631800,-500.0,0.00014765,2]
[392650229,1761774631809,-500.0,0.00014765,2]
[392650230,1761774631818,-500.0,0.00014765,2]
[392650231,1761774631827,-500.0,0.00014765,2]
[392650232,1761774631837,-500.0,0.00014765,2]
[392650233,1761774631846,-500.0,0.00014765,2]
[392650234,1761774631855,-500.0,0.00014765,2]
[392650235,1761774631864,-500.0,0.00014765,2]
[392650236,1761774631874,-500.0,0.00014765,2]
[392650237,1761774631883,-500.0,0.00014765,2]
[392650238,1761774631892,-500.0,0.00014765,2]
[392650239,1761774631901,-500.0,0.00014765,2]
[392650240,1761774631911,-500.0,0.00014765,2]
[392650241,1761774631920,-500.0,0.00014765,2]
[392650242,1761774631930,-500.0,0.00014765,2]
[392650244,1761774631939,-500.0,0.00014765,2]
[392650246,1761774631948,-500.0,0.00014765,2]
[392650247,1761774631958,-500.0,0.00014765,2]
[392650248,1761774631967,-500.0,0.00014765,2]
[392650249,1761774631976,-500.0,0.00014765,2]
[392650250,1761774631986,-500.0,0.00014765,2]
[392650251,1761774631995,-500.0,0.00014765,2]
[392650252,1761774632004,-500.0,0.00014765,2]
[392650253,1761774632014,-500.0,0.00014765,2]
[392650254,1761774632023,-358.59143241,0.00014765,2]
[392650255,1761774632237,-500.0,0.00014765,2]
[392650256,1761774632255,-500.0,0.00014765,2]
[392650257,1761774632264,-500.0,0.00014765,2]
[392650258,1761774632274,-500.0,0.00014765,2]
[392650259,1761774632284,-500.0,0.00014765,2]
[392650260,1761774632294,-500.0,0.00014765,2]
[392650261,1761774632304,-500.0,0.00014765,2]
[392650262,1761774632313,-500.0,0.00014765,2]
[392650263,1761774632322,-500.0,0.00014765,2]
[392650264,1761774632331,-500.0,0.00014765,2]
[392650265,1761774632340,-500.0,0.00014765,2]
[392650266,1761774632349,-500.0,0.00014765,2]
[392650267,1761774632358,-500.0,0.00014765,2]
[392650268,1761774632367,-500.0,0.00014765,2]
[392650269,1761774632377,-500.0,0.00014765,2]
[392650270,1761774632387,-500.0,0.00014765,2]
[392650271,1761774632400,-500.0,0.00014765,2]
[392650272,1761774632413,-311.27207281,0.00014765,2]
[392650273,1761774632422,-500.0,0.00014765,2]
[392650274,1761774632431,-500.0,0.00014765,2]
[392650275,1761774632440,-500.0,0.00014765,2]
[392650276,1761774632449,-500.0,0.00014765,2]
[392650277,1761774632458,-500.0,0.00014765,2]
[392650278,1761774632468,-500.0,0.00014765,2]
[392650279,1761774632477,-500.0,0.00014765,2]
[392650280,1761774632486,-500.0,0.00014765,2]
[392650281,1761774632495,-500.0,0.00014765,2]
[392650282,1761774632504,-500.0,0.00014765,2]
[392650283,1761774632514,-500.0,0.00014765,2]
[392650284,1761774632523,-500.0,0.00014765,2]
[392650285,1761774632532,-500.0,0.00014765,2]
[392650286,1761774632541,-500.0,0.00014765,2]
[392650287,1761774632550,-500.0,0.00014765,2]
[392650288,1761774632560,-500.0,0.00014765,2]
[392650289,1761774632569,-500.0,0.00014765,2]
[392650290,1761774632579,-600.0,0.00014765,2]
[392650291,1761774632588,-500.0,0.00014765,2]
[392650292,1761774632598,-151.0,0.00014766,2]
[392650293,1761774632607,-151.0,0.00014766,2]
[392650294,1761774632616,-151.0,0.00014766,2]
[392650295,1761774632626,-151.0,0.00014766,2]
[392650296,1761774632636,-151.0,0.00014766,2]
[392650297,1761774632646,-151.0,0.00014766,2]
[392650298,1761774632656,-151.0,0.00014766,2]
[392650299,1761774632667,-151.0,0.00014766,2]
[392650300,1761774632677,-151.0,0.00014766,2]
[392650301,1761774632687,-151.0,0.00014766,2]
[392650302,1761774632696,-151.0,0.00014766,2]
[392650303,1761774632705,-500.0,0.00014766,2]
[392650304,1761774632714,-151.0,0.00014766,2]
[392650305,1761774632723,-151.0,0.00014766,2]
[392650306,1761774632733,-500.0,0.00014766,2]
[392650307,1761774632743,-151.0,0.00014766,2]
[392650308,1761774632752,-151.0,0.00014766,2]
[392650309,1761774632762,-637.23474015,0.00014766,2]
[392650310,1761774632772,-151.0,0.00014766,2]
[392650311,1761774632782,-151.0,0.00014766,2]
[392650312,1761774632791,-151.0,0.00014766,2]
[392650313,1761774632801,-151.0,0.00014766,2]
[392650314,1761774632812,-151.0,0.00014766,2]
[392650315,1761774632821,-151.0,0.00014766,2]
[392650316,1761774632831,-151.0,0.00014766,2]
[392650317,1761774632841,-151.0,0.00014766,2]
[392650318,1761774632851,-500.0,0.00014766,2]
[392650319,1761774632861,-151.0,0.00014766,2]
[392650320,1761774632871,-721.12765535,0.00014766,2]
[392650321,1761774632881,-151.0,0.00014766,2]
[392650322,1761774632891,-151.0,0.00014766,2]
[392650323,1761774632901,-151.0,0.00014766,2]
[392650324,1761774632911,-151.0,0.00014766,2]
[392650325,1761774632924,-151.0,0.00014766,2]
[392650326,1761774632934,-151.0,0.00014766,2]
[392650327,1761774632944,-151.0,0.00014766,2]
[392650328,1761774632954,-151.0,0.00014766,2]
[392650329,1761774632965,-500.0,0.00014766,2]
[392650330,1761774632974,-151.0,0.00014766,2]
[392650331,1761774632984,-500.0,0.00014766,2]
[392650332,1761774632994,-304.77291311,0.00014766,2]
[392650333,1761774633003,-151.0,0.00014766,2]
[392650334,1761774633013,-500.0,0.00014766,2]
[392650335,1761774633023,-322.6107,0.00014766,2]
[392650336,1761774633032,-574.12855637,0.00014766,2]
[392650337,1761774633042,-500.0,0.00014766,2]
[392650338,1761774633051,-500.0,0.00014766,2]
[392650339,1761774633061,-500.0,0.00014766,2]
[392650340,1761774633071,-500.0,0.00014766,2]
[392650341,1761774633080,-500.0,0.00014766,2]
[392650342,1761774633090,-500.0,0.00014766,2]
[392650343,1761774633099,-500.0,0.00014766,2]
[392650344,1761774633109,-500.0,0.00014766,2]
[392650345,1761774633119,-500.0,0.00014766,2]
[392650346,1761774633128,-500.0,0.00014766,2]
[392650347,1761774633138,-250.0,0.00014766,2]
[392650348,1761774633147,-500.0,0.00014766,2]
[392650349,1761774633157,-500.0,0.00014766,2]
[392650350,1761774633167,-250.0,0.00014766,2]
[392650351,1761774633177,-591.74589922,0.00014766,2]
[392650352,1761774633188,-500.0,0.00014766,2]
[392650353,1761774633198,-250.0,0.00014766,2]
[392650354,1761774633207,-250.0,0.00014766,2]
[392650355,1761774633217,-500.0,0.00014766,2]
[392650356,1761774633227,-250.0,0.00014766,2]
[392650357,1761774633236,-500.0,0.00014766,2]
[392650358,1761774633245,-250.0,0.00014766,2]
[392650359,1761774633255,-500.0,0.00014766,2]
[392650360,1761774633265,-250.0,0.00014766,2]
[392650361,1761774633274,-500.0,0.00014766,2]
[392650362,1761774633284,-250.0,0.00014766,2]
[392650363,1761774633293,-500.0,0.00014766,2]
[392650364,1761774633302,-250.0,0.00014766,2]
[392650365,1761774633312,-250.0,0.00014766,2]
[392650366,1761774633321,-274.53816626,0.00014766,2]
[392650367,1761774633331,-1000.0,0.0001478,2]
[392650368,1761774633340,-265.652,0.00014781,2]
[392650369,1761774633349,-1000.0,0.00014781,2]
[392650370,1761774633359,-1000.0,0.00014781,2]
[392650371,1761774633368,-532.21,0.00014784,2]
[392650372,1761774633378,-1000.0,0.00014788,2]
[392650373,1761774633387,-1000.0,0.00014789,2]
[392650374,1761774633397,-1425.0,0.00014799,2]
[392650375,1761774633409,-1893.27125268,0.0001485,2]
[392650376,1761774633419,-3385.67001,0.0001485,2]
[392650377,1761774633429,-3418.0,0.00014856,2]
[392650378,1761774633439,-606.0,0.00014856,2]
[392650379,1761774633448,-820.0,0.00014856,2]
[392650380,1761774633457,-573.0,0.00014856,2]
[392650381,1761774633467,-1592.0,0.00014856,2]
[392650382,1761774633477,-1312.0,0.00014856,2]
[392650383,1761774633486,-904.0,0.00014856,2]
[392650384,1761774633495,-1186.0,0.00014856,2]
[392650385,1761774633505,-1269.0,0.00014856,2]
[392650386,1761774633514,-817.0,0.00014856,2]
[392650387,1761774633524,-1492.453,0.00014856,2]
[392650388,1761774633534,-558.0,0.00014856,2]
[392650389,1761774633543,-1425.0,0.00014868,2]
[392650390,1761774633555,-500.0,0.0001488,2]
[392650391,1761774633565,-1425.0,0.00014887,2]
[392650392,1761774633575,-3848.471,0.00014891,2]
[392650393,1761774633584,-234.0503,0.00014891,2]
[392650394,1761774633594,-182.74080128,0.00014899,2]
[392650395,1761774633603,-255.49160589,0.00014899,2]
[392650396,1761774633612,-500.0,0.00014899,2]
[392650397,1761774633621,-351.15409639,0.00014899,2]
[392650398,1761774633631,-360.35254209,0.00014899,2]
[392650399,1761774633640,-172.4113301,0.00014899,2]
[392650400,1761774633649,-11815.6062,0.000149,2]
[392650401,1761774633658,-2996.1713,0.000149,2]
[392650402,1761774633667,-6091.79277391,0.000149,2]
[392650403,1761774633680,-3128.29660856,0.000149,2]
[392650404,1761774633695,-1701.6785179,0.000149,2]
[392650405,1761774633707,-836.36343726,0.000149,2]
[392650406,1761774633720,-1635.05849312,0.000149,2]
[392650407,1761774633732,-986.17788644,0.000149,2]
[392650408,1761774633747,-500.54996532,0.000149,2]
[392650409,1761774633758,-1137.38751742,0.000149,2]
[392650410,1761774633770,-234.40820007,0.000149,2]
[392650411,1761774633779,-1000.0,0.000149,2]
[392650412,1761774633788,-190.67760706,0.000149,2]
[392650413,1761774633798,-1209.7833362,0.000149,2]
[392650414,1761774633807,-779.37047952,0.000149,2]
[392650415,1761774633816,-172.4113301,0.000149,2]
[392650416,1761774633825,-495.89205315,0.000149,2]
[392650417,1761774633836,-32.4569939,0.00014915,2]
[392650418,1761774633850,-368.0,0.00014915,2]
[392650419,1761774633862,-599.5430061,0.00014915,2]
[392650420,1761774633871,-500.0,0.00014973,2]
[392650421,1761774633880,-261.3233349,0.00014973,2]
[392650422,1761774633892,-238.6766651,0.00014973,2]
[392650423,1761774633901,-328.99036432,0.00014973,2]
[392650424,1761774633913,-171.00963568,0.00014973,2]
[392650425,1761774633924,-81.10860617,0.00014973,2]
[392650426,1761774633982,-231.08900708,0.00014973,2]
[392650427,1761774633991,-500.0,0.00014973,2]
[392650428,1761774634001,-500.0,0.00014973,2]
[392650429,1761774634010,-433.21534504,0.00014973,2]
[392650430,1761774634019,-500.0,0.00014973,2]
[392650431,1761774634029,-151.0,0.00014995,2]
[392650432,1761774634038,-151.0,0.00014996,2]
[392650433,1761774634047,-151.0,0.00014996,2]
[392650434,1761774634057,-151.0,0.00014997,2]
[392650435,1761774634066,-178439.61885578,0.00014998,2]
[392650436,1761774634078,-20045.29715173,0.00014998,2]
[392650442,1761774637464,-2598.54859338,0.00014899,2]
[392650443,1761774637503,-512.95468866,0.00014899,2]
[392650444,1761774637591,-542.46609112,0.00014899,2]
[392650445,1761774637603,-438.6542734,0.00014899,2]
[392650446,1761774637615,-2672.92855536,0.00014899,2]
[392650447,1761774637671,-445.62895687,0.00014899,2]
[392650456,1761774639807,-64.18490655,0.00014899,2]
[392650457,1761774639939,-1637.54548326,0.00014899,2]
[392650458,1761774639950,-1904.86794597,0.00014899,2]
[392650459,1761774639960,-8912.91154858,0.00014899,2]
[392650460,1761774639970,-17028.35191729,0.00014998,2]
[392650461,1761774639979,-4448.62288212,0.00014999,2]
[392650462,1761774639989,-500.0,0.00014999,2]
[392650463,1761774639998,-500.0,0.00014999,2]
[392650464,1761774640009,-500.0,0.00014999,2]
[392650465,1761774640019,-500.0,0.00014999,2]
[392650466,1761774640029,-500.0,0.00014999,2]
[392650467,1761774640038,-500.0,0.00014999,2]
[392650469,1761774640047,-500.0,0.00014999,2]
[392650470,1761774640056,-500.0,0.00014999,2]
[392650471,1761774640065,-500.0,0.00014999,2]
[392650472,1761774640074,-500.0,0.00014999,2]
[392650473,1761774640085,-500.0,0.00014999,2]
[392650474,1761774640094,-500.0,0.00014999,2]
[392650475,1761774640103,-471.53866152,0.00014999,2]
[392650476,1761774640112,-525.35060905,0.00014999,2]
[392650477,1761774640122,-500.0,0.00014999,2]
[392650478,1761774640131,-666.0,0.00014999,2]
[392650479,1761774640140,-1751.0,0.00015,2]
[392650480,1761774640150,-88324.01988057,0.00015,2]
[392650481,1761774640171,-9947.91884588,0.00015,2]
[392650482,1761774640182,-2359493.07507034,0.00015,2]
[392650483,1761774640192,-320677.61221524,0.00015,2]
[392650484,1761774640201,-193630.66028918,0.00015,2]
[392650485,1761774640210,-270461.87888283,0.00015,2]
[392650486,1761774640263,-280.43949967,0.00015,2]
[392650491,1761774642482,-1904.86794591,0.00014899,2]
[392650492,1761774642492,-8912.91154858,0.00014899,2]
[392650493,1761774642501,-10619.4352019,0.00015,2]
[392650494,1761774642551,-711993.23537884,0.00015,2]
[392650495,1761774642756,-963.51257753,0.00015,2]
[392650524,1761774645664,-428.423,0.00014856,2]
[392650525,1761774645675,-574.41586302,0.00015,2]
[392650526,1761774645688,-1492.45227566,0.00015,2]
[392650594,1761774711605,504.0,0.00017,3]
[392650626,1761774777349,500.0,0.000165,7]
[392650627,1761774777786,500.0,0.000165,7]
[392650629,1761774778424,500.0,0.000165,7]
[392650635,1761774779142,500.0,0.000165,7]
[392650636,1761774779874,500.0,0.000165,7]
[392650637,1761774780636,291.97,0.000165,7]
[392650649,1761774800735,500.0,0.000289,120]
[392650650,1761774801140,500.0,0.00031499,120]
[392650651,1761774806408,500.0,0.000165,7]
[392650652,1761774807159,500.0,0.000165,7]
[392650653,1761774807921,500.0,0.000165,7]
[392650654,1761774808752,500.0,0.000165,7]
[392650681,1761774876239,500.0,0.000165,7]
[392650712,1761775029430,500.0,0.00030136,120]
[392650723,1761775298812,1017.76,6.911e-05,2]
[392650724,1761775298984,1017.76,7.275e-05,2]
[392650725,1761775299202,1017.76,7.639e-05,2]
[392650727,1761775299439,1017.76,8.003e-05,2]
[392650728,1761775299811,1017.76,8.366e-05,2]
[392650729,1761775299975,1017.76,8.73e-05,2]
[392650730,1761775300469,1017.76,9.094e-05,2]
[392650731,1761775300615,1017.76,9.458e-05,2]
[392650732,1761775300763,1017.76,9.821e-05,2]
[392650733,1761775301115,1017.76,0.00010185,2]
[392650734,1761775301238,1017.76,0.00010549,2]
[392650735,1761775301418,1017.76,0.00010913,2]
[392650736,1761775301583,1017.76,0.00011277,2]
[392650737,1761775301725,1017.76,0.0001164,2]
[392650738,1761775301959,1017.76,0.00012004,2]
[392650739,1761775302151,1017.76,0.00012368,2]
[392650740,1761775302382,1017.76,0.00012732,2]
[392650741,1761775302732,1017.76,0.00013095,2]
[392650742,1761775302975,1017.76,0.00013459,2]
[392650783,1761775401376,500.0,0.000257,120]
[392650784,1761775401672,215.583094,0.000277,120]
[392650786,1761775436463,150.0,0.000277,120]
[392650790,1761775461955,300.0,0.00030136,120]
[392650830,1761775500393,250.0,0.00031499,120]
[392650832,1761775512856,150.0,0.00013488,2]
[392650835,1761775628847,-250.0,0.00013678,2]
[392650836,1761775634590,315.1,0.000315,120]
[392650838,1761775645650,-434.888218,0.00013681,2]
[392650839,1761775647355,-3070.41,0.00013699,2]
[392650840,1761775647377,-200.0,0.0001375,2]
[392650841,1761775647400,-150.0,0.00013766,2]
[392650842,1761775647423,-300.0,0.00013782,2]
[392650843,1761775647444,-500.0,0.00013814,2]
[392650844,1761775647466,-195.0,0.00013816,2]
[392650845,1761775647488,-195.0,0.00013818,2]
[392650848,1761775713797,-162.67497404,0.00013732,2]
[392650849,1761775713819,-55.79592951,0.00013806,2]
[392650853,1761775758915,-94.20407049,0.00013806,2]
[392650854,1761775758946,-167.23256126,0.0001381,2]
[392650869,1761775788923,-369.79962213,0.0001371,2]
[392650870,1761775791191,-432.5530858,0.0001371,2]
[392650871,1761775794304,-399.08,0.0001371,2]
[392650872,1761775796595,-212.9588813,0.0001371,2]
[392650873,1761775798863,-201.58,0.0001371,2]
[392650874,1761775801729,-273.45,0.00013709,2]
[392650875,1761775805154,201.0,0.00027019,120]
[392650876,1761775806839,-181.32,0.00013668,2]
[392650877,1761775811653,-421.59288246,0.00013668,2]
[392650878,1761775814933,-233.081201,0.00013668,2]
[392650879,1761775817627,-256.13693754,0.00013668,2]
[392650889,1761775831654,-586.80506096,0.00013668,2]
[392650890,1761775831665,-450.0,0.00013668,2]
[392650891,1761775831752,-699.36702806,0.00013668,2]
[392650892,1761775831765,-936.02531955,0.00013668,2]
[392650893,1761775831821,-57.73157043,0.00013668,2]
[392650894,1761775831831,-26.55,0.00013709,2]
[392650895,1761775831841,-1200.0,0.00013709,2]
[392650896,1761775831850,-300.0,0.00013709,2]
[392650897,1761775831859,-13627.72841077,0.0001371,2]
[392650898,1761775831869,-82.76743874,0.0001381,2]
[392650899,1761775831882,-300.0,0.00013814,2]
[392650900,1761775832091,-250.0,0.00013821,2]
[392650903,1761775832107,-1017.76,0.00013823,2]
[392650905,1761775832117,-150.0,0.00013831,2]
[392650906,1761775832125,-241.0,0.00013831,2]
[392650907,1761775832134,-360.62,0.00013832,2]
[392650908,1761775832143,-999.99,0.00013832,2]
[392650909,1761775832152,-9999.99,0.00013832,2]
[392650910,1761775832161,-8292.65,0.00013832,2]
[392650911,1761775832171,-3583.14,0.00013832,2]
[392650912,1761775832180,-150.99,0.00013832,2]
[392650913,1761775832189,-12849.57,0.00013859,2]
[392650914,1761775832198,-500.0,0.00013877,2]
[392650915,1761775832208,-500.0,0.00013877,2]
[392650916,1761775832217,-500.0,0.00013877,2]
[392650917,1761775832227,-500.0,0.00013877,2]
[392650918,1761775832236,-500.0,0.00013877,2]
[392650919,1761775832245,-500.0,0.00013877,2]
[392650920,1761775832254,-500.0,0.00013877,2]
[392650921,1761775832263,-582.34005417,0.00013877,2]
[392650922,1761775832272,-500.0,0.00013877,2]
[392650923,1761775832283,-500.0,0.00013877,2]
[392650924,1761775832292,-500.0,0.00013877,2]
[392650925,1761775832301,-500.0,0.00013877,2]
[392650926,1761775832312,-500.0,0.00013877,2]
[392650927,1761775832323,-500.0,0.00013877,2]
[392650928,1761775832333,-500.0,0.00013877,2]
[392650929,1761775832344,-1368.55,0.00013878,2]
[392650930,1761775832353,-271.85,0.00013986,2]
[392650931,1761775832365,-500.0,0.00013988,2]
[392650932,1761775832374,-578.20924308,0.00014088,2]
[392650933,1761775832383,-277.35679052,0.00014088,2]
[392650934,1761775832392,-27022.0,0.00014101,2]
[392650935,1761775832402,-166.47,0.00014209,2]